fUST/lending_fUST_20251026
["ID","MTS","AMOUNT","RATE_DAILY","PERIOD"]
[392388925,1761419074000,247.73026732,0.00016336,2]
[392388926,1761419074046,500.0,0.00016336,2]
[392388927,1761419074079,500.0,0.00016336,2]
[392388928,1761419074115,500.0,0.00016336,2]
[392388929,1761419074151,500.0,0.00016336,2]
[392388930,1761419074179,500.0,0.00016336,2]
[392388931,1761419074218,500.0,0.00016336,2]
[392388932,1761419074252,500.0,0.00016336,2]
[392388933,1761419074282,614.61646205,0.00016336,2]
[392388934,1761419074326,500.0,0.00016336,2]
[392388935,1761419074362,302.55115342,0.00016336,2]
[392388936,1761419074395,500.0,0.00016336,2]
[392388937,1761419074427,500.0,0.00016336,2]
[392388938,1761419074466,500.0,0.00016336,2]
[392388939,1761419074501,500.0,0.00016336,2]
[392388940,1761419074536,500.0,0.00016336,2]
[392388941,1761419074571,500.0,0.00016336,2]
[392388942,1761419074605,500.0,0.00016336,2]
[392388943,1761419074632,500.0,0.00016336,2]
[392388944,1761419074667,16.55169331,0.00016336,2]
[392388945,1761419074688,483.44830669,0.00016336,2]
[392388946,1761419074718,500.0,0.00016336,2]
[392388947,1761419074748,500.0,0.00016336,2]
[392388948,1761419074779,500.0,0.00016336,2]
[392388949,1761419074824,500.0,0.00016336,2]
[392388950,1761419074863,220.48753856,0.00016336,2]
[392388951,1761419074907,500.0,0.00016336,2]
[392388952,1761419074938,500.0,0.00016336,2]
[392388953,1761419074993,500.0,0.00016336,2]
[392388954,1761419075244,500.0,0.00016336,2]
[392388955,1761419075276,500.0,0.00016336,2]
[392388956,1761419075303,500.0,0.00016336,2]
[392388957,1761419075334,500.0,0.00016336,2]
[392388958,1761419075361,500.0,0.00016336,2]
[392388959,1761419075397,500.0,0.00016336,2]
[392388960,1761419075431,500.0,0.00016336,2]
[392388961,1761419075462,300.0,0.000163,2]
[392388962,1761419075496,500.0,0.00016336,2]
[392388963,1761419075525,500.0,0.00016336,2]
[392388964,1761419075561,500.0,0.00016336,2]
[392388965,1761419075590,496.07415475,0.00016336,2]
[392388966,1761419082252,-300.0,0.000163,2]
[392388967,1761419082283,-3.92584525,0.00016336,2]
[392388968,1761419082311,-1447.00275806,0.00016337,2]
[392388969,1761419085123,300.0,0.000163,2]
[392388970,1761419091516,300.0,0.000163,2]
[392388971,1761419091681,700.0,0.00016337,2]
[392388972,1761419099677,5000.0,0.00016145,2]
[392388973,1761419107784,3786.36428174,0.00016145,2]
[392388974,1761419110038,196.0,0.00016,2]
[392388975,1761419110329,196.0,0.00016032,2]
[392388976,1761419110653,196.0,0.00016064,2]
[392388977,1761419111180,196.0,0.00016095,2]
[392388978,1761419111283,196.0,0.00016127,2]
[392388979,1761419111686,196.0,0.00016159,2]
[392388980,1761419111959,196.0,0.00016191,2]
[392388981,1761419120768,181.72489865,0.00016155,2]
[392388982,1761419123383,5000.0,0.00016207,2]
[392388983,1761419140086,-196.0,0.00015899,2]
[392388984,1761419147183,5000.0,0.0001606,2]
[392388985,1761419162894,2793.6338314,0.0001606,2]
[392388986,1761419170307,1814.3761686,0.0001606,2]
[392388987,1761419170341,3185.6238314,0.0001606,2]
[392388988,1761419180126,492.55018045,0.00015625,2]
[392388989,1761419181572,886.59032482,0.00015958,2]
[392388992,1761419193900,2701.88835486,0.0001606,2]
[392388993,1761419229394,196.0,0.00016,2]
[392388994,1761419229576,196.0,0.00016029,2]
[392388995,1761419229878,196.0,0.00016058,2]
[392388996,1761419231696,1383.2734539,0.00015328,2]
[392388997,1761419283199,156.39,0.00015135,2]
[392388998,1761419283463,156.37,0.00015135,2]
[392388999,1761419307392,-196.0,0.0001606,2]
[392389000,1761419328539,5000.0,0.00016086,2]
[392389001,1761419334989,188.17373781,0.00015958,2]
[392389002,1761419338579,-160.09684101,0.000161,2]
[392389003,1761419341104,-177.08789888,0.000161,2]
[392389004,1761419345539,-162.81526011,0.000161,2]
[392389005,1761419345561,-20.07473989,0.00016236,2]
[392389006,1761419351236,5000.0,0.000161,2]
[392389007,1761419353707,300.0,0.000161,2]
[392389008,1761419354507,196.0,0.00016,2]
[392389009,1761419354792,196.0,0.00016034,2]
[392389010,1761419355085,196.0,0.00016069,2]
[392389011,1761419355410,196.0,0.00016103,2]
[392389012,1761419355714,196.0,0.00016138,2]
[392389013,1761419355995,196.0,0.00016172,2]
[392389014,1761419356282,196.0,0.00016207,2]
[392389015,1761419365748,300.0,0.000161,2]
[392389016,1761419370744,-846.89796251,0.00016236,2]
[392389017,1761419373887,5000.0,0.00016236,2]
[392389018,1761419376101,300.0,0.000161,2]
[392389019,1761419396522,2375.29277639,0.00016241,2]
[392389020,1761419413786,-196.0,0.00016241,2]
[392389021,1761419413808,-5.80210112,0.00016273,2]
[392389063,1761419432133,-724.00789888,0.00016273,2]
[392389065,1761419432142,-292.78489527,0.00016273,2]
[392389067,1761419432154,-2743.43557309,0.00016273,2]
[392389069,1761419432163,-196.0,0.00016275,2]
[392389071,1761419432172,-1576.16057746,0.0001629,2]
[392389073,1761419432182,-196.0,0.0001631,2]
[392389075,1761419432191,-1200.0,0.00016333,2]
[392389077,1761419432200,-1200.0,0.00016334,2]
[392389079,1761419432209,-300.0,0.00016334,2]
[392389081,1761419432218,-300.0,0.00016334,2]
[392389083,1761419432227,-300.0,0.00016334,2]
[392389085,1761419432237,-300.0,0.00016334,2]
[392389087,1761419432246,-300.0,0.00016334,2]
[392389089,1761419432255,-30018.99462445,0.00016335,2]
[392389091,1761419432264,-210.59894218,0.00016335,2]
[392389093,1761419432273,-500.0,0.00016335,2]
[392389095,1761419432283,-366.95012816,0.00016335,2]
[392389097,1761419432292,-194.19225192,0.00016335,2]
[392389099,1761419432301,-500.0,0.00016335,2]
[392389101,1761419432311,-457.17960689,0.00016335,2]
[392389103,1761419432325,-500.0,0.00016335,2]
[392389105,1761419432334,-500.0,0.00016335,2]
[392389107,1761419432343,-500.0,0.00016335,2]
[392389109,1761419432353,-372.04875386,0.00016335,2]
[392389111,1761419432362,-500.0,0.00016335,2]
[392389113,1761419432371,-500.0,0.00016335,2]
[392389115,1761419432380,-500.0,0.00016335,2]
[392389117,1761419432389,-500.0,0.00016335,2]
[392389119,1761419432399,-233.99882465,0.00016335,2]
[392389121,1761419432408,-233.99882465,0.00016335,2]
[392389123,1761419432417,-225.82312638,0.00016335,2]
[392389125,1761419432426,-444.92858579,0.00016335,2]
[392389127,1761419432435,-12351.32556254,0.00016337,2]
[392389153,1761419437765,-1200.12999034,0.00016337,2]
[392389154,1761419437820,-1004.38909799,0.00016337,2]
[392389155,1761419437833,-1619.38572393,0.00016337,2]
[392389217,1761419440636,-3e-08,0.00016337,2]
[392389218,1761419440844,-800.66786803,0.00016337,2]
[392389219,1761419441148,-1601.33573606,0.00016337,2]
[392389220,1761419441566,-3202.67147212,0.00016337,2]
[392389221,1761419441632,-3594.66705576,0.00016337,2]
[392389222,1761419441661,-500.0,0.00016337,2]
[392389223,1761419441688,-810.67588848,0.00016337,2]
[392389224,1761419441803,-189.32411152,0.00016337,2]
[392389225,1761419441831,-1011.59415201,0.00016337,2]
[392389259,1761419462745,300.0,0.00016337,2]
[392389260,1761419467400,196.0,0.00016,2]
[392389261,1761419467724,196.0,0.00016028,2]
[392389262,1761419468029,196.0,0.00016055,2]
[392389263,1761419468346,196.0,0.00016083,2]
[392389264,1761419468635,196.0,0.00016111,2]
[392389265,1761419469490,196.0,0.00016138,2]
[392389266,1761419469815,196.0,0.00016166,2]
[392389267,1761419470156,196.0,0.00016193,2]
[392389268,1761419470452,196.0,0.00016221,2]
[392389269,1761419470748,196.0,0.00016249,2]
[392389270,1761419471037,196.0,0.00016276,2]
[392389271,1761419471338,196.0,0.00016304,2]
[392389272,1761419471733,196.0,0.00016332,2]
[392389273,1761419483232,157.6976018,0.00015407,2]
[392389274,1761419496122,150.0,0.00017044,30]
[392389275,1761419496541,150.0,0.00018594,30]
[392389276,1761419503829,500.0,0.00016336,2]
[392389277,1761419504808,500.0,0.00016334,2]
[392389278,1761419504858,500.0,0.00016334,2]
[392389279,1761419504910,530.0,0.00016334,2]
[392389280,1761419506917,530.85279322,0.00016334,2]
[392389281,1761419506953,260.5370628,0.00016334,2]
[392389282,1761419506989,500.0,0.00016334,2]
[392389283,1761419507027,500.0,0.00016334,2]
[392389284,1761419507067,416.13420126,0.00016334,2]
[392389285,1761419507107,372.16481839,0.00016334,2]
[392389286,1761419507192,500.0,0.00016334,2]
[392389287,1761419507271,500.0,0.00016334,2]
[392389288,1761419507303,500.0,0.00016334,2]
[392389289,1761419507340,500.0,0.00016334,2]
[392389290,1761419507374,384.62352253,0.00016334,2]
[392389291,1761419507402,115.37647747,0.00016334,2]
[392389292,1761419507436,500.0,0.00016334,2]
[392389293,1761419507470,250.0,0.00016334,2]
[392389294,1761419512275,2503.211491,0.00015413,2]
[392389295,1761419514251,1491.478051,0.00015536,2]
[392389296,1761419516200,500.0,0.00016334,2]
[392389297,1761419516235,500.0,0.00016334,2]
[392389298,1761419516262,500.0,0.00016334,2]
[392389299,1761419516291,500.0,0.00016334,2]
[392389300,1761419516319,374.14108577,0.00016334,2]
[392389301,1761419516349,500.0,0.00016334,2]
[392389302,1761419516382,500.0,0.00016334,2]
[392389303,1761419516410,500.0,0.00016334,2]
[392389304,1761419516440,500.0,0.00016334,2]
[392389305,1761419516475,500.0,0.00016334,2]
[392389306,1761419516507,265.80289476,0.00016334,2]
[392389307,1761419516530,234.19710524,0.00016334,2]
[392389308,1761419518882,500.0,0.00016334,2]
[392389309,1761419519182,500.0,0.00016334,2]
[392389310,1761419519290,958.66546356,0.00016338,2]
[392389311,1761419519472,562.80155592,0.00016334,2]
[392389312,1761419522731,300.0,0.00016337,2]
[392389313,1761419527047,5000.0,0.00016338,2]
[392389314,1761419534347,-234.8013381,0.00016338,2]
[392389315,1761419536902,-196.0,0.00016338,2]
[392389316,1761419541980,810.52157865,0.00016258,2]
[392389317,1761419542737,1133.82429663,0.00016338,2]
[392389318,1761419542971,3866.17570337,0.00016338,2]
[392389319,1761419550517,5000.0,0.00016338,2]
[392389320,1761419552275,500.0,0.00016337,2]
[392389321,1761419552304,479.20017288,0.00016337,2]
[392389322,1761419552380,154.63412375,0.00016337,2]
[392389323,1761419552404,56.70462668,0.00016337,2]
[392389324,1761419552464,500.0,0.00016337,2]
[392389325,1761419558097,1200.0,0.00016337,2]
[392389326,1761419560502,-6758.2827198,0.00016338,2]
[392389327,1761419560540,-10000.01,0.00016338,2]
[392389328,1761419560691,-10000.01,0.00016338,2]
[392389329,1761419560851,-2825.63044414,0.00016338,2]
[392389330,1761419560884,-1312.52864336,0.00016358,2]
[392389331,1761419560933,-1723.691825,0.00016358,2]
[392389332,1761419565152,256.225325,0.00019,6]
[392389333,1761419567815,150.0,0.00012987,30]
[392389334,1761419573357,5000.0,0.00016358,2]
[392389335,1761419580423,4033.33698774,0.00016338,2]
[392389336,1761419582413,300.0,0.00016372,2]
[392389337,1761419589230,5000.0,0.00016373,2]
[392389338,1761419589297,196.0,0.00016,2]
[392389339,1761419590120,196.0,0.00016035,2]
[392389340,1761419590455,196.0,0.0001607,2]
[392389341,1761419590813,78.67301226,0.00016105,2]
[392389342,1761419590847,117.32698774,0.00016105,2]
[392389343,1761419591049,196.0,0.0001614,2]
[392389344,1761419591383,196.0,0.00016175,2]
[392389345,1761419591690,196.0,0.0001621,2]
[392389346,1761419591829,2034.80968811,0.00016214,2]
[392389347,1761419592007,196.0,0.00016245,2]
[392389348,1761419592288,196.0,0.0001628,2]
[392389349,1761419592593,196.0,0.00016315,2]
[392389350,1761419592873,196.0,0.0001635,2]
[392389351,1761419597474,5000.0,0.00016373,2]
[392389352,1761419612584,154.702127,0.00019,6]
[392389353,1761419613460,1475.87332415,0.00016373,2]
[392389354,1761419613483,3524.12667585,0.00016373,2]
[392389355,1761419621185,445.83169024,0.00016373,2]
[392389356,1761419636078,150.0,0.00012683,30]
[392389357,1761419638912,223.7821434,0.00015534,2]
[392389358,1761419641011,402.80785812,0.00015882,2]
[392389359,1761419642194,300.0,0.00016372,2]
[392389360,1761419642428,716.10285888,0.0001623,2]
[392389361,1761419644740,-161.02452541,0.00016373,2]
[392389362,1761419644773,-500.0,0.00016373,2]
[392389363,1761419644803,-500.0,0.00016373,2]
[392389364,1761419644831,-500.0,0.00016373,2]
[392389365,1761419644859,-500.0,0.00016373,2]
[392389366,1761419644886,-500.0,0.00016373,2]
[392389367,1761419644914,-500.0,0.00016373,2]
[392389368,1761419650985,3677.96094918,0.00016338,2]
[392389369,1761419651012,10000.01,0.00016338,2]
[392389370,1761419651038,2940.47384452,0.00016338,2]
[392389371,1761419659898,-196.0,0.00016385,2]
[392389372,1761419674971,-3664.6005656,0.00016387,2]
[392389373,1761419675097,-2670.8088688,0.00016387,2]
[392389374,1761419690187,-4033.3369877,0.00016407,2]
[392389375,1761419690716,1933.3360246,0.00016338,2]
[392389376,1761419690749,10000.01,0.00016338,2]
[392389377,1761419690778,10000.01,0.00016338,2]
[392389378,1761419690803,10000.01,0.00016338,2]
[392389379,1761419690829,10000.01,0.00016338,2]
[392389380,1761419690854,4658.3922624,0.00016338,2]
[392389381,1761419690879,10000.01,0.00016338,2]
[392389382,1761419690903,10000.01,0.00016338,2]
[392389383,1761419690927,10000.01,0.00016338,2]
[392389384,1761419690951,10000.01,0.00016338,2]
[392389385,1761419690977,10000.01,0.00016338,2]
[392389386,1761419691000,10000.01,0.00016338,2]
[392389387,1761419691026,10000.01,0.00016338,2]
[392389388,1761419691053,10000.01,0.00016338,2]
[392389389,1761419691376,10000.01,0.00016338,2]
[392389390,1761419728750,-196.01992208,0.00015209,2]
[392389391,1761419732180,-196.0,0.00015209,2]
[392389392,1761419734217,-196.00735381,0.00015209,2]
[392389393,1761419735748,-196.02062112,0.00015209,2]
[392389394,1761419737746,-212.71980663,0.00015209,2]
[392389395,1761419739254,-196.0,0.00015209,2]
[392389396,1761419741965,-196.0,0.00015209,2]
[392389397,1761419744630,-171.17095519,0.00015209,2]
[392389398,1761419744780,-8848.02456161,0.00015209,2]
[392389399,1761419744879,-10000.01,0.00015209,2]
[392389400,1761419745050,-1282.69688546,0.00015209,2]
[392389401,1761419756619,-196.0,0.00015682,2]
[392389402,1761419756904,-196.0,0.0001584,2]
[392389403,1761419761530,2613.4503923,0.0001584,2]
[392389404,1761419771755,-300.0,0.00015989,2]
[392389405,1761419776829,5000.0,0.00015989,2]
[392389406,1761419782359,709.20638131,0.000159,2]
[392389407,1761419784598,1286.81715508,0.00015989,2]
[392389408,1761419786813,999.0,0.00015223,2]
[392389409,1761419787169,-9391.54607131,0.0001599,2]
[392389410,1761419787328,-10000.01,0.0001599,2]
[392389411,1761419787454,-10000.01,0.0001599,2]
[392389412,1761419787574,-10000.01,0.0001599,2]
[392389413,1761419787693,-10000.01,0.0001599,2]
[392389414,1761419787833,-10000.01,0.0001599,2]
[392389415,1761419787987,-10000.01,0.0001599,2]
[392389416,1761419788400,-10000.01,0.0001599,2]
[392389417,1761419793307,-10000.01,0.0001599,2]
[392389418,1761419794158,-10000.01,0.0001599,2]
[392389419,1761419805046,-163.07995858,0.00015741,2]
[392389420,1761419805076,-163.07995858,0.000159,2]
[392389421,1761419805106,-608.36392869,0.0001599,2]
[392389422,1761419822138,5000.0,0.00016,2]
[392389423,1761419827695,196.0,0.00016,2]
[392389424,1761419827978,196.0,0.00016037,2]
[392389425,1761419828315,196.0,0.00016074,2]
[392389426,1761419828743,196.0,0.00016111,2]
[392389427,1761419844130,5000.0,0.00016145,2]
[392389428,1761419867156,5000.0,0.00016145,2]
[392389429,1761419874901,0.01,0.00016145,2]
[392389430,1761419874922,4149.03787119,0.00016145,2]
[392389431,1761419890370,5000.0,0.00016032,2]
[392389432,1761419898611,5000.0,0.00016032,2]
[392389433,1761419907470,0.01,0.00016032,2]
[392389434,1761419907494,4999.99,0.00016032,2]
[392389435,1761419915215,5000.0,0.00016032,2]
[392389436,1761419924778,0.02,0.00016032,2]
[392389437,1761419932615,5000.0,0.0001599,2]
[392389439,1761419939051,696.5161827,0.00018618,7]
[392389440,1761419941071,5000.0,0.0001599,2]
[392389441,1761419944727,0.01,0.00015786,2]
[392389442,1761419944750,271.03021538,0.00015786,2]
[392389443,1761419956928,5000.0,0.0001599,2]
[392389444,1761419964663,4728.97978462,0.0001599,2]
[392389445,1761419964685,271.02021538,0.0001599,2]
[392389446,1761419980003,5000.0,0.0001599,2]
[392389447,1761419987824,4728.98978462,0.0001599,2]
[392389448,1761419987845,271.01021538,0.0001599,2]
[392389449,1761420010199,5000.0,0.0001599,2]
[392389450,1761420032761,4728.99978462,0.0001599,2]
[392389451,1761420032787,271.00021538,0.0001599,2]
[392389452,1761420055716,596.34763966,0.0001599,2]
[392389453,1761420085891,9132.66214496,0.00015169,2]
[392389454,1761420085914,35.49188964,0.00015169,2]
[392389455,1761420086644,1741.8739293,0.00015169,2]
[392389456,1761420107431,850.93212881,0.0001599,2]
[392389457,1761420168305,212.300984,0.00019,6]
[392389462,1761420387625,854.09506054,0.00018595,7]
[392389464,1761420425132,2804.4911925,0.00015355,2]
[392389465,1761420444846,4567.22085975,0.0001599,2]
[392389466,1761420458524,1200.0,0.00015989,2]
[392389469,1761420482521,300.0,0.00015989,2]
[392389470,1761420501764,4831.868709,0.00015122,2]
[392389471,1761420513047,500.0,0.00015989,2]
[392389472,1761420513076,411.08996698,0.00015989,2]
[392389473,1761420513169,323.00318333,0.00015989,2]
[392389474,1761420514152,500.0,0.00015989,2]
[392389475,1761420514409,215.7691688,0.00015989,2]
[392389476,1761420514445,500.0,0.00015989,2]
[392389477,1761420514475,500.0,0.00015989,2]
[392389478,1761420514504,389.99479004,0.00015989,2]
[392389479,1761420514539,328.28418185,0.00015989,2]
[392389480,1761420514563,171.71581815,0.00015989,2]
[392389481,1761420514594,500.0,0.00015989,2]
[392389482,1761420514630,500.0,0.00015989,2]
[392389483,1761420514671,160.35537748,0.00015989,2]
[392389484,1761420514701,500.0,0.00015989,2]
[392389485,1761420514735,164.1778583,0.00015989,2]
[392389486,1761420514773,448.10415795,0.00015989,2]
[392389487,1761420515488,363.74664777,0.00015,2]
[392389488,1761420515510,973.35911739,0.00015,2]
[392389489,1761420530951,545.13844426,0.00015989,2]
[392389490,1761420543067,300.0,0.00015989,2]
[392389491,1761420602179,300.0,0.00015989,2]
[392389492,1761420602437,300.0,0.00015989,2]
[392389493,1761420602475,1200.0,0.00015989,2]
[392389494,1761420602598,300.0,0.00015989,2]
[392389495,1761420603073,300.0,0.00015989,2]
[392389496,1761420603277,620.55558369,0.000159,2]
[392389497,1761420605777,2716.60364278,0.00015105,2]
[392389498,1761420605800,4427.62476822,0.00015105,2]
[392389499,1761420605889,3548.47663451,0.000159,2]
[392389500,1761420623054,196.0,0.00015989,2]
[392389501,1761420623781,-194.98700156,0.00015989,2]
[392389502,1761420625351,-198.25850035,0.00015989,2]
[392389503,1761420627415,-106.75449809,0.00015989,2]
[392389504,1761420627441,-343.14185258,0.00015989,2]
[392389540,1761420632107,-156.85814742,0.00015989,2]
[392389541,1761420632116,-500.0,0.00015989,2]
[392389542,1761420632126,-480.22420928,0.00015989,2]
[392389543,1761420632135,-237.28849887,0.00015989,2]
[392389544,1761420632144,-236.00346444,0.00015989,2]
[392389545,1761420632154,-432.77914025,0.0001599,2]
[392389546,1761420632164,-100000.0,0.0001599,2]
[392389547,1761420632174,-196.0,0.00016,2]
[392389548,1761420632183,-3548.4766345,0.0001601,2]
[392389549,1761420632193,-5100.0,0.00016013,2]
[392389550,1761420632204,-325.0,0.00016016,2]
[392389551,1761420632213,-196.0,0.00016038,2]
[392389552,1761420632222,-2034.80968811,0.00016043,2]
[392389553,1761420632231,-196.0,0.00016076,2]
[392389554,1761420632240,-196.0,0.00016115,2]
[392389555,1761420632249,-3548.4766345,0.00016119,2]
[392389556,1761420632258,-151.0,0.00016145,2]
[392389557,1761420632267,-151.0,0.00016145,2]
[392389558,1761420632276,-151.0,0.00016145,2]
[392389559,1761420632285,-201.08724892,0.00016145,2]
[392389560,1761420632295,-196.0,0.00016153,2]
[392389561,1761420632304,-196.0,0.00016191,2]
[392389562,1761420632314,-43989.56187681,0.00016191,2]
[392389563,1761420632324,-3548.4766345,0.00016229,2]
[392389564,1761420632333,-500.0,0.00016229,2]
[392389565,1761420632344,-196.0,0.00016229,2]
[392389566,1761420632354,-196.0,0.00016267,2]
[392389567,1761420632363,-205.68315899,0.00016273,2]
[392389568,1761420632372,-200.0,0.000163,2]
[392389569,1761420632382,-196.0,0.00016305,2]
[392389570,1761420632392,-220.024,0.00016337,2]
[392389571,1761420632403,-427.9692658,0.00016338,2]
[392389572,1761420632412,-3548.4766345,0.00016338,2]
[392389573,1761420632421,-8022.41376443,0.00016338,2]
[392389574,1761420632437,-2603.87102644,0.00016338,2]
[392389575,1761420632461,-655.3531192,0.00016338,2]
[392389576,1761420632472,-16850.8726006,0.00016338,2]
[392389590,1761420637938,-500.0,0.00015989,2]
[392389591,1761420637948,-14728.45653711,0.00016338,2]
[392389592,1761420637959,-8492.39584171,0.00016338,2]
[392389593,1761420637970,-4063.4245101,0.00016338,2]
[392389596,1761420639763,1827.90859727,0.00015989,2]
[392389597,1761420639785,3172.09140273,0.00015989,2]
[392389712,1761420643367,-648.45842395,0.00016338,2]
[392389719,1761420643423,-7456.99890206,0.00016338,2]
[392389720,1761420643437,-7533.91165518,0.00016338,2]
[392389722,1761420643595,-3e-08,0.00016338,2]
[392389732,1761420643687,-51228.77209579,0.00016338,2]
[392389890,1761420646214,-4829.22492376,0.00016338,2]
[392389891,1761420663645,5000.0,0.00015989,2]
[392389892,1761420674620,-332.06040721,0.00015989,2]
[392389893,1761420677942,-167.93959279,0.00015989,2]
[392389894,1761420677968,-28.06040721,0.00015989,2]
[392389895,1761420679949,-166.9955249,0.00015989,2]
[392389896,1761420685591,5000.0,0.00015989,2]
[392389897,1761420690054,150.0,0.00017092,30]
[392389898,1761420690620,269.50669704,0.00015411,2]
[392389899,1761420692327,485.11205467,0.00015755,2]
[392389900,1761420707446,-304.94406789,0.00015989,2]
[392389901,1761420707475,-500.0,0.00015989,2]
[392389902,1761420707504,-500.0,0.00015989,2]
[392389903,1761420707532,-500.0,0.00015989,2]
[392389904,1761420707560,-500.0,0.00015989,2]
[392389905,1761420707634,-500.0,0.00015989,2]
[392389906,1761420707664,-500.0,0.00015989,2]
[392389907,1761420707694,-317.72843976,0.00015989,2]
[392389908,1761420707723,-193.52221537,0.00015989,2]
[392389909,1761420707755,-196.0,0.00016,2]
[392389910,1761420707972,1975.62055396,0.00015989,2]
[392389911,1761420707993,3024.37944604,0.00015989,2]
[392389912,1761420708255,526.04,0.00015989,2]
[392389913,1761420718407,500.0,0.00015989,2]
[392389914,1761420718462,500.0,0.00015989,2]
[392389915,1761420718518,500.0,0.00015989,2]
[392389916,1761420718575,596.52806503,0.00015989,2]
[392389917,1761420730811,1739.50048742,0.0001603,2]
[392389918,1761420731888,500.0,0.00015989,2]
[392389919,1761420731920,491.78836771,0.00015989,2]
[392389920,1761420737717,-196.0,0.0001603,2]
[392389921,1761420737745,-196.0,0.0001606,2]
[392389922,1761420737800,500.0,0.00015989,2]
[392389923,1761420737857,500.0,0.00015989,2]
[392389924,1761420749654,500.0,0.00015989,2]
[392389925,1761420752434,500.0,0.00015989,2]
[392389926,1761420752488,500.0,0.00015989,2]
[392389927,1761420752540,250.0,0.00015989,2]
[392389928,1761420752944,-196.0,0.0001609,2]
[392389929,1761420760710,780.3275187,0.00015272,2]
[392389930,1761420767938,-862.42143052,0.00016099,2]
[392389931,1761420778897,288.729338,0.00019,6]
[392389932,1761420783057,-2185.84196649,0.00016175,2]
[392389933,1761420788115,5000.0,0.00016175,2]
[392389934,1761420789156,628.32606702,0.00015401,2]
[392389935,1761420789180,6355.61962648,0.00015401,2]
[392389936,1761420790374,196.0,0.00016,2]
[392389937,1761420790695,196.0,0.00016044,2]
[392389938,1761420790988,196.0,0.00016088,2]
[392389939,1761420791835,196.0,0.00016131,2]
[392389940,1761420792169,196.0,0.00016175,2]
[392389941,1761420798259,-196.0,0.00016219,2]
[392389942,1761420811673,2880.93,0.00016219,2]
[392389943,1761420813464,-708.88892452,0.0001625,2]
[392389944,1761420815304,179.454468,0.00019,6]
[392389945,1761420828590,-196.0,0.00016263,2]
[392389946,1761420843761,-196.0,0.00016306,2]
[392389947,1761420846044,337.31572387,0.00015464,2]
[392389948,1761420847742,607.16830297,0.00015721,2]
[392389949,1761420849626,1079.41031639,0.00015978,2]
[392389950,1761420851184,1684.89204074,0.00016235,2]
[392389951,1761420858937,-300.0,0.00016336,2]
[392389952,1761420874263,-176.019,0.00016337,2]
[392389953,1761420874293,-1200.0,0.00016337,2]
[392389954,1761420902497,300.0,0.00016337,2]
[392389955,1761420902585,300.0,0.00016337,2]
[392389956,1761420902867,196.0,0.00016,2]
[392389957,1761420902894,1200.0,0.00016336,2]
[392389958,1761420903088,196.0,0.00016032,2]
[392389959,1761420903384,196.0,0.00016065,2]
[392389960,1761420903557,300.0,0.00016337,2]
[392389961,1761420903703,196.0,0.00016097,2]
[392389962,1761420904041,196.0,0.00016129,2]
[392389963,1761420904357,196.0,0.00016162,2]